Cogmind - Beta 13 @@@ ROGUE MODE // 2024.04.08 @ 13:01:32 Player: Catty Watty Result: Destroyed by G-34 Mercenary with Small Laser Performance ------------- Evolutions (1) 500 Regions Visited (4) 800 Robots Destroyed (78) 390 Value Destroyed (1744) 1744 Prototype IDs (3) 60 Alien Tech Used (0) 0 Bonus (466) 466 TOTAL SCORE: 3960 Bonus ------- High Alert Combat Kills 466 Cogmind --------- Core Integrity 0/400 Matter 31/300 Energy 265/265 System Corruption 6% Temperature Warm (157) Movement Core (450) Ox8 Location -9/Storage Parts ------- > --- POWER (2) -------- Backup Power I Improved Ion Engine > --- PROPULSION (2) --- Light Treads > --- UTILITY (2) ------ Medium Storage Unit > --- WEAPON (3) ------- Advanced Beam Cannon Improved Assault Rifle > --- INVENTORY (10) --- Medium Matter Pod (100) Terrain Scan Processor Terrain Scan Processor ECM Suite ECM Suite Peak State ------------ > --- POWER ------------ Ion Engine Cooled Ion Engine > --- PROPULSION ------- Light Treads Improved Treads > --- UTILITY ---------- Structural Scanner Improved Terrain Scanner > --- WEAPON ----------- Beam Rifle Particle Gun Rocket Launcher > --- INVENTORY -------- Medium Matter Pod Medium Matter Pod Medium Matter Pod Weight Redist. System Light Armor Plating [Rating: 17] Favorites ----------- Power Backup Power I Engine Backup Power I Propulsion Light Treads Treads Light Treads Leg Aluminum Leg Wheel Wheel Flight Unit Flight Unit Utility Medium Storage Unit Device Improved Terrain Scanner Storage Medium Storage Unit Processor Terrain Scan Processor Protection Backup Plating I Weapon Rocket Launcher Energy Gun Particle Gun Energy Cannon Advanced Beam Cannon Ballistic Gun Light Assault Rifle Launcher Rocket Launcher Build | -11 -10 -10 -9 -9 ------- Run | Yrd Mat Min Mat Sto Slots Evolved 2 | . . . 2 . Power 1 | . . . 1 . Propulsion . | . . . . . Utility . | . . . . . Weapon 1 | . . . 1 . Parts Attached 41 | 7 . 8 7 19 Power 6 | 1 . 1 2 2 Engine 6 | 1 . 1 2 2 Core . | . . . . . Reactor . | . . . . . Propulsion 11 | 2 . 2 2 5 Treads 5 | . . . 2 3 Leg 2 | . . 2 . . Wheel 3 | 2 . . . 1 Hover . | . . . . . Flight 1 | . . . . 1 Utility 7 | 2 . 3 . 2 Device 5 | 2 . 2 . 1 Storage 1 | . . . . 1 Processor 1 | . . 1 . . Hackware . | . . . . . Protection . | . . . . . Artifact . | . . . . . Weapon 17 | 2 . 2 3 10 Energy Gun 8 | 2 . 1 3 2 Energy Cannon 1 | . . . . 1 Ballistic Gun 3 | . . . . 3 Ballistic Cannon . | . . . . . Launcher 5 | . . 1 . 4 Special Weapon . | . . . . . Impact Weapon . | . . . . . Slashing Weapon . | . . . . . Piercing Weapon . | . . . . . Special Melee Weapon . | . . . . . Unidentified Prototypes 3 | . . . 1 2 Corrupted Parts 1 | . . . . 1 System Corruption 5 | . . . . 5 Parts Lost 19 | . . 2 . 17 Power 4 | . . 1 . 3 Propulsion 4 | . . . . 4 Utility 2 | . . . . 2 Weapon 9 | . . 1 . 8 Highest Loss Streak 9 | . . 2 . 9 To Critical Strikes . | . . . . . Average Slot Usage (%) 86 | . 100 94 92 82 Engine 15 | . 14 12 16 16 Treads 13 | . . . 17 16 Leg 5 | . . 23 4 . Wheel 2 | . 28 3 . 1 Device 13 | . 28 26 22 7 Storage 5 | . . . . 9 Energy Gun 9 | . 28 25 20 1 Energy Cannon 1 | . . . . 1 Ballistic Gun 6 | . . . . 9 Launcher 12 | . . . 11 16 Naked Turns . | . . . . . Heaviest Build 30 | 9 9 14 25 30 Greatest Support 43 | 20 20 20 43 43 Greatest Overweight (x) 9 | . . 3 . 9 Average Overweight (x) . | . . . . . Largest Inventory Capacity 10 | 5 5 5 5 10 Average Capacity 7 | 5 5 5 5 9 Most Carried 10 | . 3 5 5 10 Average Carried 4 | . . 3 4 6 Final Capacity 10 | 5 5 5 5 10 Final Carried 5 | . 3 4 5 5 Class Distribution -------------------- 26% | Scavenger-Skirmisher 21% | Scavenger-Mutant 20% | Mutant 16% | Scavenger-Gunner 6% | Bomber 4% | Scavenger-Bomber Dominant Class ---------------- Mutant | -10/Materials Scavenger-Mutant | -10/Mines Scavenger-Skirmisher | -9/Materials Scavenger-Gunner | -9/Storage Resources | -11 -10 -10 -9 -9 ----------- Run | Yrd Mat Min Mat Sto Matter Collected 1191 | 270 . 212 120 589 Remotely . | . . . . . Salvage Created 1918 | 103 . 212 207 1396 Parts 154 | 9 . 14 19 112 Haulers Intercepted 4 | . . . 1 3 Recyclers Shooed 1 | . . . . 1 Parts Field Recycled . | . . . . . Retrieved Matter . | . . . . . Parts Self-Destructed . | . . . . . Prevented . | . . . . . Kills | -11 -10 -10 -9 -9 ------- Run | Yrd Mat Min Mat Sto Combat Hostiles Destroyed 51 | 1 . 2 8 40 Guns 14 | 1 . 2 4 7 Cannons 2 | . . . . 2 AOE 35 | . . . 4 31 Classes Destroyed 13 | 2 . 3 3 5 Worker 11 | . . 1 3 7 Builder 5 | . . 1 . 4 Tunneler 3 | 3 . . . . Hauler 4 | . . . 1 3 Recycler 2 | . . 1 . 1 Mechanic 1 | . . . . 1 Operator 1 | . . . . 1 Watcher 2 | . . . . 2 Swarmer 10 | . . . 4 6 Grunt 29 | 1 . 2 3 23 Brawler 2 | . . . . 2 Protector 1 | . . . . 1 Sentry 9 | . . . 1 8 Best Kill Streak 16 | 4 . 2 7 16 Combat Bots Only 8 | 1 . 2 4 8 Max Kills in Single Turn 3 | 1 . 1 2 3 Gunslinging . | . . . . . Exploded 3 | . . . 2 3 Melee . | . . . . . Uniques/NPCs Destroyed . | . . . . . Combat | -11 -10 -10 -9 -9 -------- Run | Yrd Mat Min Mat Sto Hostile Shots Fired 224 | 9 . 24 23 168 Missed 59 | 1 . 5 5 48 Damage Taken 2231 | 87 . 243 159 1742 Core 508 | 12 . 91 31 374 Absorbed by Shields . | . . . . . Regen/Repaired (Parts) 26 | . . . 26 . Core Remaining (%) 76 | 95 . 58 . . Volleys Fired 134 | 8 . 19 17 90 Largest 3 | 2 . 2 3 3 Hottest 154 | 90 . 115 154 124 Shots Fired 223 | 16 . 28 26 153 Gun 149 | 16 . 28 20 85 Cannon 10 | . . . . 10 Launcher 64 | . . . 6 58 Special . | . . . . . Kinetic 65 | . . . . 65 Thermal 84 | 8 . 26 20 30 Explosive 50 | . . . 6 44 Electromagnetic 24 | 8 . 2 . 14 Robot Hit Streak 11 | 6 . 6 11 4 Robot Miss Streak 4 | 3 . 3 3 4 Penetration Max . | . . . . . Secondary Targets . | . . . . . Shots Hit Robots 123 | 9 . 19 14 81 Core Hits 125 | 4 . 9 18 94 Critical Kills . | . . . . . Critical Parts Destroyed . | . . . . . Critical Strikes 1 | . . . 1 . Burn 1 | . . . 1 . Melee Attacks . | . . . . . Impact . | . . . . . Slashing . | . . . . . Piercing . | . . . . . Sneak Attacks . | . . . . . Combat Hostiles . | . . . . . Follow-up Attacks . | . . . . . Damage Inflicted 4922 | 219 . 259 699 3745 Guns 1164 | 117 . 259 171 617 Cannons 86 | . . . . 86 Explosions 3672 | 102 . . 528 3042 Melee . | . . . . . Ramming . | . . . . . Kinetic 400 | . . . . 400 Thermal 902 | 139 . 246 171 346 Explosive 3177 | . . . 528 2649 Electromagnetic 443 | 80 . 13 . 350 Impact . | . . . . . Slashing . | . . . . . Piercing . | . . . . . Highest Corruption 6 | . . . . 6 Average Corruption 5 | . . . . 5 Corruption Purged . | . . . . . Corruption Blocked . | . . . . . Effects 15 | . . . . 15 Message Errors 1 | . . . . 1 Matter Fused 5 | . . . . 5 Heat Flow Errors 1 | . . . . 1 Energy Discharges 4 | . . . . 4 Parts Rejected 1 | . . . . 1 Data Loss (minor) 1 | . . . . 1 Data Loss (major) 2 | . . . . 2 Overload Shots . | . . . . . Overflow Damage 139 | 11 . . 47 81 Projectiles . | . . . . . Explosions 139 | 11 . . 47 81 Melee . | . . . . . Knockbacks . | . . . . . Impact . | . . . . . Kinetic . | . . . . . Secondary . | . . . . . Self-Inflicted Damage 245 | . . . . 245 Shots 8 | . . . . 8 Rammed . | . . . . . Targets Rammed . | . . . . . Kicked . | . . . . . Crushed . | . . . . . Highest Temperature 575 | 238 . 211 306 575 Average Temperature 141 | 124 . 92 106 176 Received Heat Transfer 753 | 48 . 156 42 507 Effects 16 | . . . 2 14 Shutdowns 3 | . . . . 3 Energy Bleed 2 | . . . . 2 Interference 2 | . . . 2 . Matter Decay 1 | . . . . 1 Short Circuit 3 | . . . . 3 Damage (minor) 2 | . . . . 2 Damage (major) 2 | . . . . 2 Damage (core) 1 | . . . . 1 Siege Activations . | . . . . . Robots Corrupted . | . . . . . Combat Hostiles . | . . . . . Parts Fried . | . . . . . Impact Corruptions . | . . . . . Robots Melted . | . . . . . Combat Hostiles . | . . . . . Parts Melted 3 | 1 . 2 . . Heat Transferred 2214 | 311 . 666 518 719 Parts Sabotaged . | . . . . . Parts Stolen . | . . . . . Parts Stripped . | . . . . . Power Chain Reactions 3 | 1 . . . 2 Alert | -11 -10 -10 -9 -9 ------- Run | Yrd Mat Min Mat Sto Peak Influence 1120 | 36 23 65 286 1120 Initial 120 | . 23 3 25 120 Average 425 | 7 12 52 127 678 Maximum Alert Level 4 | . . . 1 4 Low Security (%) 45 | 100 100 100 86 9 Level 1 3 | . . . 13 2 Level 2 26 | . . . . 44 Level 3 22 | . . . . 37 Level 4 2 | . . . . 4 Level 5 . | . . . . . High Security . | . . . . . Max Security . | . . . . . Squads Dispatched 10 | . 2 . 1 7 Investigation 7 | . 2 . 1 4 Extermination . | . . . . . Reinforcement 2 | . . . . 2 Assault 1 | . . . . 1 Garrison . | . . . . . Intercept . | . . . . . Searches Triggered . | . . . . . Construction Impeded 1 | . . . . 1 Haulers Reinforced . | . . . . . Active Scanning Responses . | . . . . . Cargo Convoy Interrupts . | . . . . . Stealth | -11 -10 -10 -9 -9 --------- Run | Yrd Mat Min Mat Sto Distress Signals 3 | . . . . 3 Communications Jammed . | . . . . . Distress Signals . | . . . . . Times Spotted 57 | 1 . 2 7 47 Peak Tracking Total 6 | 1 . 2 4 6 Tactical Retreats . | . . . . . Traps | -11 -10 -10 -9 -9 ------- Run | Yrd Mat Min Mat Sto Traps Triggered . | . . . . . Indirectly . | . . . . . Trap Hack Attempts . | . . . . . Triggered . | . . . . . Disarmed . | . . . . . Reprogrammed 4 | . 4 . . . Reused 1 | . 1 . . . Traps Extracted . | . . . . . Installed . | . . . . . Triggered 1 | . 1 . . . Machines | -11 -10 -10 -9 -9 ---------- Run | Yrd Mat Min Mat Sto Machines Disabled 6 | . . . . 6 Max in Single Turn 2 | . . . . 2 Machines Repaired . | . . . . . Machines Dismantled . | . . . . . Machines Sabotaged . | . . . . . Overloaded Fab Kills . | . . . . . Hacking | -11 -10 -10 -9 -9 --------- Run | Yrd Mat Min Mat Sto Machines Accessed 9 | . 2 . 1 6 Terminals 5 | . 2 . . 3 Fabricators . | . . . . . Repair Stations 3 | . . . 1 2 Recycling Units 1 | . . . . 1 Scanalyzers . | . . . . . Garrison Access . | . . . . . Total Hacks 33 | . 10 . 4 19 Successful 19 | . 5 . 3 11 Failed 14 | . 5 . 1 8 Catastrophic 2 | . . . 1 1 Database Lockouts . | . . . . . Manual . | . . . . . Terminals 16 | . 10 . . 6 Fabricators . | . . . . . Repair Stations 11 | . . . 4 7 Recycling Units 6 | . . . . 6 Scanalyzers . | . . . . . Garrison Access . | . . . . . Terminal Hacks 8 | . 5 . . 3 Record 3 | . 3 . . . Open Door 2 | . . . . 2 Unreport Threat 1 | . 1 . . . Reprogram Traps 1 | . 1 . . . Maintenance Status 1 | . . . . 1 Fabricator Hacks . | . . . . . Repair Station Hacks 7 | . . . 3 4 Scan Component 3 | . . . 1 2 Repair 1 | . . . 1 . Refit 3 | . . . 1 2 Recycling Unit Hacks 4 | . . . . 4 Recycle Component 1 | . . . . 1 Process 3 | . . . . 3 Scanalyzer . | . . . . . Garrison Access Hacks . | . . . . . Unauthorized Hacks . | . . . . . Terminals . | . . . . . Fabricators . | . . . . . Repair Stations . | . . . . . Recycling Units . | . . . . . Scanalyzers . | . . . . . Garrison Access . | . . . . . Data Cores Recovered . | . . . . . Used . | . . . . . Hacking Detections 9 | . 2 . 1 6 Full Trace Events 6 | . 1 . 1 4 Feedback Events . | . . . . . Feedback Blocked . | . . . . . Robot Schematics Acquired . | . . . . . Robots Built . | . . . . . Authchips . | . . . . . Time . | . . . . . Total Robot Build Rating . | . . . . . Part Schematics Acquired . | . . . . . Parts Built . | . . . . . Authchips . | . . . . . Time . | . . . . . Total Part Build Rating . | . . . . . Parts Repaired 1 | . . . 1 . Time 32 | . . . 32 . Parts Recycled 1 | . . . . 1 Recycled Matter 11 | . . . . 11 Retrieved Matter . | . . . . . Retrieved Components . | . . . . . Parts Scanalyzed . | . . . . . Part Schematics Acquired . | . . . . . Parts Damaged . | . . . . . Bothacking | -11 -10 -10 -9 -9 ------------ Run | Yrd Mat Min Mat Sto Used RIF Installer . | . . . . . Robots Hacked . | . . . . . Non-combat . | . . . . . Combat . | . . . . . Robot Hacks Applied . | . . . . . Relay Couplers Released . | . . . . . Fabnet Peak Effective % . | . . . . . Robots Rewired . | . . . . . Allies Hacked . | . . . . . Hacks Repelled . | . . . . . Allies | -11 -10 -10 -9 -9 -------- Run | Yrd Mat Min Mat Sto Total Allies . | . . . . . Largest Group . | . . . . . Highest-Rated Group . | . . . . . Highest-Rated Ally . | . . . . . Total Orders . | . . . . . Ally Attacks . | . . . . . Total Damage . | . . . . . Kills . | . . . . . Allies Corrupted . | . . . . . Allies Melted . | . . . . . Intel | -11 -10 -10 -9 -9 ------- Run | Yrd Mat Min Mat Sto Robot Analysis Total . | . . . . . Derelict Logs Recovered 1 | . . 1 . . Drone Launches . | . . . . . Drone Recoveries . | . . . . . Exploration | -11 -10 -10 -9 -9 ------------- Run | Yrd Mat Min Mat Sto Turns Passed 1495 | 94 43 252 234 872 Spaces Moved 774 | 85 50 157 115 367 Core 51 | 26 . 5 . 20 Treads 384 | . . . 97 287 Legs 167 | . . 149 18 . Wheels 172 | 59 50 3 . 60 Hover . | . . . . . Flight . | . . . . . Fastest Speed 50 | 50 80 80 120 95 Average Speed 138 | 70 80 121 153 164 Slowest Speed 500 | 80 80 200 160 500 Overloaded Moves . | . . . . . Propulsion Burnouts . | . . . . . Robots Hopped . | . . . . . Cave-ins Triggered . | . . . . . Exploration Rate (%) 25 | 5 15 38 13 54 Regions Visited 4 Branch Regions 2 Pre-discovered Areas . | . . . . . Known Exits Taken . | . . . . . Unknown Exits Taken 4 | 1 1 1 1 . Scrap Searched . | . . . . . Spaces Dug . | . . . . . Terrain Destroyed 336 | . . . 39 297 Melee . | . . . . . Projectile . | . . . . . AOE 336 | . . . 39 297 Terrain Rammed . | . . . . . Walls Destroyed . | . . . . . Machines Disabled . | . . . . . Actions | -11 -10 -10 -9 -9 --------- Run | Yrd Mat Min Mat Sto Total 989 | 99 52 190 148 500 Wait 3 | . . . . 3 Move 770 | 84 49 156 114 367 Hop . | . . . . . Pick Up 17 | . 3 . 4 10 Fast Attach 29 | 7 . 7 4 11 Attach 9 | . . 1 1 7 Detach 7 | . . 4 . 3 Swap 3 | . . . 2 1 Drop 17 | . . 3 6 8 Fire 134 | 8 . 19 17 90 Melee . | . . . . . Ram . | . . . . . Kick . | . . . . . Crush . | . . . . . Escape Stasis . | . . . . . Rewire . | . . . . . Trap . | . . . . . Miscellaneous . | . . . . . Route ------- -11/Scrapyard -10/Materials -10/Mines -9/Materials (discovered 2 exits: Mat / *Sto) -9/Storage History --------- Turn | Location | Event 2 | -11/Scrapyard | Met Revision 17 52 | -11/Scrapyard | Discovered new exit (range 8) 95 | -11/Scrapyard | Entered Materials 116 | -10/Materials | Discovered new exit (range 13) 138 | -10/Materials | Entered Mines 192 | -10/Mines | Learned location of 1 exit from Materials 367 | -10/Mines | Discovered new exit (range 8) 374 | -10/Mines | Received a Rocket Launcher from a helpful Derelict 390 | -10/Mines | Entered Materials 390 | -9/Materials | Evolved 2 slots: Power x1, Weapon x1 391 | -9/Materials | Identified exit to Materials 522 | -9/Materials | Repaired Particle Gun? 566 | -9/Materials | Discovered new exit (range 15) 624 | -9/Materials | Entered Storage 839 | -9/Storage | Build established: Scavenger-Skirmisher 890 | -9/Storage | Core integrity fell below 50% 943 | -9/Storage | Lost 9 parts (2p2n1u4w) 1321 | -9/Storage | Destroyed 8 combat bots 1325 | -9/Storage | Lost 5 parts (1p1n1u2w) 1424 | -9/Storage | First assault squad dispatched 1453 | -9/Storage | Core integrity fell below 20% 1496 | -9/Storage | Destroyed by G-34 Mercenary with Small Laser Last Messages --------------- Overheating: Core damaged (-48). The unstable cave ceiling collapses. Lgt. Treads broken. Overheating: Short circuit. U-05 Engineer lays Concrete. Overheating: Broken Lgt. Treads damaged (-25). U-05 Engineer builds a Wall. Overheating: Energy bleed (-46). Overheating: Matter decay (-5). The unstable cave ceiling collapses. System corrupted: Matter fused (-9). U-05 Engineer lays Concrete. U-05 Engineer builds a Door. Rocket Launcher destroyed. The unstable cave ceiling collapses. U-05 Engineer lays Concrete. U-05 Engineer builds a Wall. The unstable cave ceiling collapses. U-05 Engineer lays Concrete. U-05 Engineer builds a Wall. Map ----- +----------------------------------------------------+ | ??????????????## # | ## ## ####??? | | ???????????#??## # # ! # ##??? | | ?????????####### # # ####### ####?#? | | ?????????########### ## #+####### ##???? | | ????????## """" # = ##???? | | ???????### """"" # ###??? | | ???????## """" # ##???? | | ???????### + ######## ##???? | | ????????## !# ## # ########???? | | ????????## # #####"""#######???? | | ????????## # ###"Y"###???????? | | ????????## # ## #???????? | | ????????#####+#### # """" "#??????? | | ????????##### ### # # """ T#??????? | | ?????????? ######+### ==# """ "#??????? | | ?????????? / #r # ##??????? | | ???????????????# ! # """ T#??????? | | ???????????????#! # "" ##??????? | | ????????????? + [ # """ #???????? | | ?????????????######### [ u ##??????? | | ???????????????######## [ ## #####???????? | | ???????????????#== # # a = # ##???????????? | | ???????????????# = " # = #####T#"????????? | | ???????????????#= + "????????? | | ???????????????# " # "????????? | | ???????????????# == #T## @ #######"????????? | | ?????????? ????#= =?# ## ##???????????????? | | ?????????? ###### # #????????????????? | | ????????? [ #g ########?????????? | | ?????????% *%% [!= g +???????? | | ?????????= %=%% ########?????????? | | ????????? # *# ;##T####???????????? | | ??????????# # = ! #???????????? | | ?????????????##### # [ """"" #???????????? | | ?????????????????#?#! """"" #???????????? | | ???????????????????# """"" #???????????? | | ???????????????????# ! #???????????? | | ???????????????????##############???????????? | | | | | | | | | | | | | | | | | | | | | | | | | +----------------------------------------------------+ Best States ------------- Heat Dissipation 38 Energy Generation 19 Energy Capacity 430 Matter Stores 300 Matter Capacity 300 Sight Range 16 Terrain Scan Range 16 Terrain Scan Density 85 Armor Coverage 80 Evasion (%) 55 Recoil Reduction 2 Item Schematics ----------------- None Robot Schematics ------------------ None Fabricated ------------ Nothing Alien Tech Used ----------------- None Achievements -------------- Crack Shot Everything Is Under Control Loot Pinata Oops Part-time Mechanic Remodeling Risk Taker Significant Disruption Uninvited Guest Challenges ------------ None Game ------ Seed TrackerQuantumChip Manual? 0 Play Time 00:26:50 Cumulative 0.6 hours Start 2024.04.08 @ 12:34:42 End 2024.04.08 @ 13:01:32 Sessions 1 Manual Loads 0 Difficulty Rogue Special Mode None Game No. 3 Rogue 3 Adventurer 0 Explorer 0 Win Type - Total 0 Types 0/0/0/0/0/0/0/0/0 Lore% 0 Gallery% 3 Achievement% 4 Wizard Run 0 Options --------- Layout 1 ASCII 0 Keyboard 0 Movement Mouse Keybinds 0 Fullscreen 1 Font 24/Terminus Map View 50x35 Zoom Use 0% Tactical HUD 0 Map Filters NONE Filters NONE Steam 1 RUN: 75dc1db0-1662-4704-a14c-2751d567ae43